lending/lending_fUSD_20240110
["ID","MTS","AMOUNT","RATE_DAILY","PERIOD"]
[311074141,1704894729000,3494.7655124,0.000199,3]
[311074143,1704894771136,7884.80583029,0.00022466,2]
[311074144,1704894792455,701.68,0.00022127,2]
[311074145,1704894798372,2000.0,0.00022117,2]
[311074146,1704894804536,1246.21146445,0.00021383,2]
[311074147,1704894804860,1246.21146445,0.00021746,2]
[311074148,1704894805205,1246.21146445,0.00022017,2]
[311074149,1704894805506,1246.21146445,0.00022317,2]
[311074150,1704894806445,172.16,0.00022273,2]
[311074151,1704894807825,166.68,0.00022107,2]
[311074152,1704894840955,699.83,0.00020071,2]
[311074153,1704894841177,699.83,0.00022335,2]
[311074154,1704894861687,154.999999,0.0002,2]
[311074155,1704894865762,159.03,0.0002198,2]
[311074156,1704894865989,159.03,0.00022137,2]
[311074157,1704894866218,159.03,0.00022294,2]
[311074158,1704894866432,159.03,0.00022451,2]
[311074159,1704894869046,164.17,0.00022172,2]
[311074160,1704894898765,171.97,0.00017558,2]
[311074161,1704894915976,150.0,0.00021898,2]
[311074162,1704894928527,1246.21146445,0.00022254,2]
[311074164,1704894983963,356.65,0.00021902,2]
[311074165,1704895004150,328.0,0.00022052,2]
[311074166,1704895015646,3059.39,0.00021899,2]
[311074170,1704895039674,250.0,0.00021948,2]
[311074172,1704895047859,1246.21146446,0.00022236,2]
[311074176,1704895095279,393.56,0.00021899,2]
[311074177,1704895119814,500.0,0.00022052,2]
[311074178,1704895120053,528.46405453,0.000225,2]
[311074179,1704895127096,5093.19074374,0.000225,2]
[311074180,1704895130706,363.52386787,0.000225,2]
[311074181,1704895138042,336.54957331,0.000225,2]
[311074182,1704895139066,3853.32732948,0.000225,2]
[311074183,1704895139512,524.34136284,0.000225,2]
[311074184,1704895142704,23900.0,0.00022052,2]
[311074185,1704895146218,557.92988483,0.000225,2]
[311074186,1704895149777,155.0,0.000225,2]
[311074187,1704895152056,155.0,0.000225,2]
[311074188,1704895153377,2136.08960768,0.000225,2]
[311074189,1704895161295,198.87132187,0.000225,2]
[311074190,1704895161951,14120.57,0.00021962,2]
[311074191,1704895167325,1912.10611571,0.000225,2]
[311074192,1704895168821,757.72766232,0.000225,2]
[311074193,1704895178865,7091.53,0.00022002,2]
[311074194,1704895192733,1263.95,0.00022408,2]
[311074195,1704895194583,189.97436715,0.00022,2]
[311074196,1704895204180,205.0,0.00021633,2]
[311074197,1704895219050,2000.0,0.00021969,2]
[311074198,1704895259225,643.91,0.00020028,2]
[311074199,1704895259472,643.91,0.00022292,2]
[311074200,1704895298570,654.9,0.00021933,2]
[311074201,1704895310757,160.74,0.00022146,2]
[311074204,1704895393223,326.50306657,0.000225,2]
[311074205,1704895411948,514.7624665,0.000225,2]
[311074206,1704895415437,472.50263285,0.000225,2]
[311074207,1704895416537,524.34136284,0.000225,2]
[311074208,1704895417864,171.69,0.00021941,2]
[311074209,1704895425100,737.6,0.00021941,2]
[311074210,1704895427434,1912.10611571,0.000225,2]
[311074211,1704895428072,757.72766232,0.000225,2]
[311074212,1704895429140,234.00983924,0.000225,2]
[311074213,1704895433726,284.94187757,0.000225,2]
[311074214,1704895445631,5093.19074374,0.000225,2]
[311074215,1704895455276,172.16,0.00022152,2]
[311074216,1704895463777,326.50306657,0.000225,2]
[311074217,1704895495120,250.0,0.00021953,2]
[311074218,1704895506153,-150.0,0.00022501,2]
[311074219,1704895506174,-300.0,0.00022501,2]
[311074220,1704895506195,-155.0,0.00022536,2]
[311074221,1704895506221,-172.16,0.00022536,2]
[311074222,1704895506243,-3853.32732948,0.00022593,2]
[311074223,1704895506268,-1246.21146446,0.00022594,2]
[311074224,1704895506291,-14123.30120606,0.00022603,2]
[311074225,1704895541832,196.78,0.00021922,2]
[311074226,1704895542417,150.00000002,0.00022489,2]
[311074227,1704895563982,205.0,0.0002246,2]
[311074229,1704895697880,154.04137752,0.00022,2]
[311074230,1704895704262,234.00983924,0.00021999,2]
[311074231,1704895705397,180.89,0.00021787,2]
[311074232,1704895713398,23900.0,0.00021795,2]
[311074234,1704895750610,164.19,0.00021793,2]
[311074235,1704895757365,593.49,0.00019875,2]
[311074236,1704895757604,593.49,0.00022139,2]
[311074237,1704895763417,2000.0,0.00021793,2]
[311074240,1704895831504,611.24,0.00021793,2]
[311074763,1704895838747,-154.87280748,0.00022508,2]
[311074765,1704895838756,-154.87280741,0.00022564,2]
[311074767,1704895838766,-728.35,0.00022602,2]
[311074769,1704895838775,-150.0,0.00022602,2]
[311074771,1704895838784,-3621.20498511,0.00022603,2]
[311074794,1704895838970,-3560.19561339,0.00022603,2]
[311074796,1704895838987,-6373.92493287,0.00022603,2]
[311074798,1704895838996,-713.54,0.00022603,2]
[311074800,1704895839005,-159.03,0.00022608,2]
[311074802,1704895839015,-154.87280741,0.0002262,2]
[311074804,1704895839024,-499.99,0.00022633,2]
[311074806,1704895839033,-176.5,0.00022633,2]
[311074808,1704895839042,-154.87280741,0.00022676,2]
[311074810,1704895839051,-150.0,0.00022722,2]
[311074812,1704895839061,-150.0,0.00022729,2]
[311074814,1704895839070,-150.0,0.0002273,2]
[311074816,1704895839080,-154.87280741,0.00022732,2]
[311074818,1704895839089,-159.03,0.00022765,2]
[311074820,1704895839098,-611.24,0.00022771,2]
[311074822,1704895839108,-150.0,0.00022778,2]
[311074824,1704895839117,-150.0,0.00022783,2]
[311074826,1704895839127,-170.92248736,0.00022784,2]
[311074828,1704895839137,-154.87280741,0.00022788,2]
[311074830,1704895839146,-150.0,0.00022794,2]
[311074832,1704895839156,-150.0,0.00022796,2]
[311074834,1704895839165,-150.0,0.00022796,2]
[311074836,1704895839175,-215.78088188,0.00022798,2]
[311074838,1704895839184,-586.54210486,0.00022798,2]
[311074840,1704895839193,-3989.19444805,0.00022799,2]
[311074842,1704895839202,-21147.28669847,0.000228,2]
[311074844,1704895839214,-1016.00502404,0.000228,2]
[311074847,1704895839228,-4525.55665612,0.000228,2]
[311074849,1704895839244,-1158.24,0.000228,2]
[311074851,1704895839255,-7689.7446475,0.000228,2]
[311074984,1704895840551,-499.99,0.00022676,2]
[311074986,1704895840561,-254.91961272,0.000228,2]
[311074989,1704895840573,-585.18103821,0.000228,2]
[311074993,1704895840608,-316.72214965,0.000228,2]
[311075048,1704895841113,-99526.70400288,0.000228,2]
[311075056,1704895841183,-599.9935567,0.000228,2]
[311075064,1704895841252,-253.35305282,0.000228,2]
[311075071,1704895841312,-520.21649882,0.000228,2]
[311075073,1704895841324,-400.92670597,0.000228,2]
[311075112,1704895841814,285.32,0.00021789,2]
[311075275,1704895843599,-1385.8004817,0.000228,2]
[311075288,1704895843709,-1188.45700892,0.000228,2]
[311075304,1704895843847,-511.680005,0.000228,2]
[311075306,1704895843859,-9537.09999968,0.000228,2]
[311075308,1704895843870,-4475.87841236,0.000228,2]
[311075310,1704895843881,-3507.9825139,0.000228,2]
[311075553,1704895846223,-280.37205257,0.000228,2]
[311075561,1704895846290,-1418.26137571,0.000228,2]
[311075563,1704895846302,-451.41,0.000228,2]
[311075565,1704895846313,-1081.472,0.000228,2]
[311075570,1704895846350,-682.9067134,0.000228,2]
[311075656,1704895847451,-53588.16359286,0.000228,2]
[311075657,1704895847460,-42453.225,0.000228,2]
[311075658,1704895847469,-250.7665,0.000228,2]
[311075659,1704895847479,-150.0,0.00022802,2]
[311075660,1704895847493,-150.0,0.00022807,2]
[311075661,1704895847503,-150.0,0.0002283,2]
[311075663,1704895847513,-150.0,0.00022835,2]
[311075665,1704895847522,-150.0,0.00022839,2]
[311075667,1704895847532,-150.0,0.00022842,2]
[311075669,1704895847542,-154.87280741,0.00022844,2]
[311075671,1704895847551,-150.0,0.00022847,2]
[311075673,1704895847561,-150.0,0.00022852,2]
[311075675,1704895847570,-150.0,0.00022853,2]
[311075677,1704895847580,-150.0,0.00022857,2]
[311075679,1704895847589,-150.0,0.00022869,2]
[311075681,1704895847598,-150.0,0.00022876,2]
[311075683,1704895847607,-150.0,0.00022877,2]
[311075685,1704895847616,-150.0,0.00022877,2]
[311075687,1704895847625,-150.0,0.00022878,2]
[311075689,1704895847634,-285.32,0.00022879,2]
[311075691,1704895847644,-150.0,0.00022879,2]
[311075693,1704895847653,-150.0,0.0002288,2]
[311075695,1704895847663,-150.0,0.0002289,2]
[311075697,1704895847672,-559.4679,0.00022896,2]
[311075699,1704895847682,-285.729364,0.00022898,2]
[311075701,1704895847691,-420.96301359,0.00022898,2]
[311075703,1704895847699,-162.54625844,0.00022898,2]
[311075705,1704895847708,-206.01974909,0.00022898,2]
[311075707,1704895847717,-2136.08960768,0.00022898,2]
[311075709,1704895847727,-198.87132187,0.00022898,2]
[311075711,1704895847738,-155.0,0.00022898,2]
[311075713,1704895847747,-301.79110902,0.00022898,2]
[311075715,1704895847756,-659.10506164,0.00022898,2]
[311075717,1704895847765,-232.81775863,0.00022898,2]
[311075719,1704895847774,-2303.07507198,0.00022898,2]
[311075721,1704895847783,-962.64257904,0.00022898,2]
[311075723,1704895847792,-155.0,0.00022898,2]
[311075725,1704895847802,-155.0,0.00022898,2]
[311075727,1704895847811,-155.0,0.00022898,2]
[311075729,1704895847820,-220.06189485,0.00022898,2]
[311075731,1704895847829,-155.0,0.00022898,2]
[311075733,1704895847838,-2898.72957174,0.00022898,2]
[311075735,1704895847847,-155.0,0.00022898,2]
[311075737,1704895847857,-459.15887984,0.00022898,2]
[311075739,1704895847866,-472.50263285,0.00022898,2]
[311075741,1704895847875,-523.86841998,0.00022898,2]
[311075743,1704895847884,-756.68956947,0.00022898,2]
[311075745,1704895847893,-1914.91069126,0.00022898,2]
[311075747,1704895847902,-287.33764373,0.00022898,2]
[311075748,1704895847911,-5086.00860306,0.00022898,2]
[311075751,1704895847921,-268.98490716,0.00022898,2]
[311075753,1704895847930,-3849.91637634,0.00022898,2]
[311075754,1704895847939,-25710.6755,0.00022898,2]
[311075757,1704895847949,-251.8756,0.00022898,2]
[311075758,1704895847958,-4889.2091,0.00022898,2]
[311075760,1704895847967,-3833.1836,0.00022898,2]
[311075762,1704895847976,-531.87255427,0.00022899,2]
[311075765,1704895847987,-150.0,0.00022899,2]
[311075767,1704895847996,-271.4184,0.000229,2]
[311075769,1704895848006,-15918.7829,0.000229,2]
[311075771,1704895848014,-484.8449,0.000229,2]
[311075773,1704895848024,-24829.6222,0.000229,2]
[311075775,1704895848033,-474.537,0.000229,2]
[311075777,1704895848042,-1742.49472034,0.000229,2]
[311075779,1704895848051,-154.87280741,0.000229,2]
[311075781,1704895848060,-174.03815641,0.000229,2]
[311075783,1704895848069,-185.6597138,0.000229,2]
[311075785,1704895848078,-999.26675449,0.000229,2]
[311075794,1704895848153,-442.00189353,0.000229,2]
[311075797,1704895848172,-51.40583684,0.000229,2]
[311075799,1704895848181,-150.0,0.00022909,2]
[311075801,1704895848191,-150.0,0.00022909,2]
[311075803,1704895848200,-150.0,0.00022911,2]
[311075805,1704895848208,-172.16,0.00022921,2]
[311075807,1704895848217,-150.0,0.00022922,2]
[311075809,1704895848226,-159.03,0.00022922,2]
[311075811,1704895848234,-150.0,0.0002293,2]
[311075813,1704895848245,-150.0,0.0002294,2]
[311075815,1704895848254,-150.0,0.00022942,2]
[311075817,1704895848263,-150.0,0.00022948,2]
[311075819,1704895848274,-150.0,0.00022956,2]
[311075820,1704895848283,-800.0,0.00022959,2]
[311075822,1704895848293,-150.0,0.00022965,2]
[311075824,1704895848303,-1367.84726341,0.0002299,2]
[311075828,1704895848326,-504.50399,0.0002299,2]
[311075830,1704895848337,-305.44,0.0002299,2]
[311075877,1704895872403,182.22605179,0.00022998,7]
[311075879,1704895913485,409.92,0.00022133,2]
[311075880,1704895943565,170.8245059,0.00022998,7]
[311075881,1704895951951,172.16,0.00022269,2]
[311075882,1704895974977,196.78,0.00022069,2]
[311075883,1704895984331,250.0,0.00022056,2]
[311075884,1704895986161,573.32232205,0.00022133,2]
[311075885,1704896123352,-270.38826598,0.00022806,2]
[311075886,1704896123375,-313.79096587,0.00022806,2]
[311075887,1704896123398,-171.61355998,0.00022806,2]
[311075888,1704896123419,-155.0,0.00022807,2]
[311075889,1704896123442,-155.0,0.00022808,2]
[311075890,1704896123467,-2136.08960768,0.00022808,2]
[311075891,1704896123492,-542.3479697,0.00022809,2]
[311075892,1704896123514,-723.45,0.00022809,2]
[311075893,1704896123536,-5324.81729011,0.00022811,2]
[311075894,1704896123559,-132230.0721648,0.00022811,2]
[311075895,1704896123582,-724.27,0.00022812,2]
[311075896,1704896123604,-150.0,0.00022812,2]
[311075897,1704896123625,-728.53,0.00022813,2]
[311075898,1704896123647,-711.34,0.00022813,2]
[311075899,1704896123671,-722.14,0.00022813,2]
[311075900,1704896123695,-500.0,0.00022816,2]
[311075901,1704896123721,-732.89,0.00022832,2]
[311075902,1704896123744,-290.90250929,0.00022885,2]
[311075903,1704896123764,-220.1212804,0.00022885,2]
[311075904,1704896123784,-155.27826223,0.00022885,2]
[311075905,1704896123804,-190.55721467,0.00022885,2]
[311075906,1704896123827,-155.03365921,0.00022885,2]
[311075907,1704896123847,-270.62291569,0.00022885,2]
[311075908,1704896123870,-155.6056519,0.00022885,2]
[311075909,1704896123892,-180.19396518,0.00022885,2]
[311075910,1704896123915,-3605.52251831,0.00022885,2]
[311075911,1704896123946,-4555.69748637,0.00022885,2]
[311075912,1704896123973,-254.88443846,0.00022885,2]
[311075913,1704896124002,-157.39238352,0.00022885,2]
[311075914,1704896124025,-208.84367344,0.00022885,2]
[311075915,1704896124053,-158.55474253,0.00022885,2]
[311075916,1704896124081,-215.21165486,0.00022885,2]
[311075917,1704896124108,-155.17020376,0.00022885,2]
[311075918,1704896124133,-236.35688557,0.00022886,2]
[311075919,1704896124157,-4059.72808567,0.00022886,2]
[311075920,1704896124183,-2669.66702326,0.00022886,2]
[311075921,1704896124208,-430.12467534,0.00022886,2]
[311075922,1704896124235,-18021.62585925,0.00022886,2]
[311075923,1704896124261,-155.0,0.00022886,2]
[311075924,1704896124288,-280.29843152,0.00022886,2]
[311075925,1704896124311,-244.85610876,0.00022886,2]
[311075926,1704896124338,-279.68298451,0.00022886,2]
[311075927,1704896124364,-417.95209149,0.00022886,2]
[311075928,1704896124392,-315983.37547069,0.00022887,2]
[311075929,1704896128987,5000.0,0.00031,30]
[311075930,1704896151078,165.74,0.00022125,2]
[311075931,1704896185868,2000.0,0.00021847,2]
[311075932,1704896195502,6115.4944876,0.00021843,2]
[311075933,1704896195531,17784.5055124,0.00021843,2]
[311075934,1704896197469,534.14,0.00019925,2]
[311075935,1704896197680,534.14,0.00022189,2]
[311075936,1704896264445,194.02,0.00021815,2]
[311075937,1704896264860,194.02,0.0002193,2]
[311075938,1704896265083,194.02,0.00022045,2]
[311075939,1704896265309,194.02,0.0002216,2]
[311075940,1704896265549,194.02,0.00022274,2]
[311075941,1704896265774,194.02,0.00022389,2]
[311075942,1704896277250,171.69,0.00021792,2]
[311075943,1704896278696,529.74,0.00021792,2]
[311075944,1704896284161,205.0,0.00022337,2]
[311075945,1704896322110,214.82617162,0.000225,2]
[311075946,1704896324124,155.0,0.000225,2]
[311075947,1704896325571,2776.04739328,0.000225,2]
[311075948,1704896331579,394.48820479,0.000225,2]
[311075949,1704896348792,155.0,0.000225,2]
[311075950,1704896349577,672.06,0.00021787,2]
[311075951,1704896351560,202.94800345,0.000225,2]
[311075952,1704896353826,220.70699301,0.000225,2]
[311075953,1704896355983,161.52008593,0.000225,2]
[311075954,1704896356456,841.77075875,0.000225,2]
[311075955,1704896362466,277.93750253,0.000225,2]
[311075956,1704896362981,384.02149916,0.000225,2]
[311075957,1704896363863,155.0,0.000225,2]
[311075958,1704896365250,246.28222146,0.000225,2]
[311075959,1704896367078,2316.14851916,0.000225,2]
[311075960,1704896367462,158.41172018,0.000225,2]
[311075961,1704896368706,5270.32227151,0.000225,2]
[311075962,1704896371837,155.0,0.000225,2]
[311075963,1704896372063,234.80481503,0.000225,2]
[311075964,1704896372590,1012.0,0.000225,2]
[311075965,1704896434495,196.62103059,0.000225,2]
[311075966,1704896437221,155.0,0.000225,2]
[311075967,1704896438937,163.7029504,0.000225,2]
[311075968,1704896438977,277.93750253,0.000225,2]
[311075969,1704896442249,542.04075646,0.000225,2]
[311075970,1704896443767,1000.0,0.00022999,5]
[311075971,1704896444638,270.38826598,0.000225,2]
[311075972,1704896451679,158.54128598,0.000225,2]
[311075973,1704896454310,155.0,0.000225,2]
[311075974,1704896462014,150.0,0.000225,2]
[311075975,1704896509448,163.7029504,0.000225,2]
[311075976,1704896593984,163.7029504,0.000225,2]
[311075977,1704896614307,20699.07,0.00021826,2]
[311075978,1704896629473,480.72,0.00019908,2]
[311075979,1704896629687,480.72,0.00022172,2]
[311075980,1704896673950,2000.0,0.00021826,2]
[311075981,1704896748276,164.77,0.00022024,2]
[311075982,1704896778853,3886.0,0.00022797,10]
[311075983,1704896817046,171.19,0.00021828,2]
[311075984,1704896818254,474.00607165,0.000225,2]
[311075985,1704896889828,462.35,0.00021833,2]
[311075986,1704896906084,494.42,0.00021831,2]
[311075987,1704896952299,-2136.08960768,0.00022501,2]
[311075988,1704896952320,-33704.86475484,0.00022501,2]
[311075989,1704896952343,-194.02,0.00022504,2]
[311075990,1704896952365,-194.02,0.00022619,2]
[311075991,1704896952385,-719.66,0.00022649,2]
[311075992,1704896952406,-725.5,0.00022651,2]
[311075993,1704896952427,-733.6,0.00022651,2]
[311075994,1704896952447,-715.92,0.00022651,2]
[311075995,1704896952467,-729.95,0.00022651,2]
[311075996,1704896952684,-1559.93853216,0.00022652,2]
[311075997,1704896952705,-734.53,0.00022653,2]
[311075998,1704896952729,-733.29,0.00022654,2]
[311075999,1704896952750,-392.4644527,0.00022655,2]
[311076000,1704896952772,-16124.92560397,0.00022656,2]
[311076001,1704896952796,-194.02,0.00022734,2]
[311076002,1704896952816,-2760.0,0.0002277,2]
[311076003,1704896952842,-315.2004,0.00022782,2]
[311076004,1704896952862,-205.5773,0.00022782,2]
[311076005,1704896952882,-1069.8738,0.00022782,2]
[311076006,1704896952901,-1931.1376,0.00022782,2]
[311076007,1704896952923,-437.2662,0.00022787,2]
[311076008,1704896952947,-625.36631117,0.00022788,2]
[311076009,1704896952971,-1922.43002243,0.00022805,2]
[311076010,1704896952998,-13765.61408148,0.00022807,2]
[311076011,1704896953028,-712.97,0.00022808,2]
[311076012,1704896953067,-208.17575223,0.00022809,2]
[311076013,1704896953093,-494.42,0.00022809,2]
[311076014,1704896953115,-194.02,0.00022848,2]
[311076015,1704896953137,-910.50593576,0.00022849,3]
[311076016,1704896953156,-419.95,0.00022849,2]
[311076017,1704896953176,-546.57806182,0.00022879,2]
[311076018,1704896953196,-232.45429526,0.0002288,2]
[311076019,1704896953216,-224.10858069,0.0002288,2]
[311076020,1704896953237,-157.72401509,0.0002288,2]
[311076021,1704896953258,-258.83583849,0.00022881,2]
[311076022,1704896953278,-155.0,0.00022881,2]
[311076023,1704896953298,-155.0,0.00022881,2]
[311076024,1704896953318,-155.23446992,0.00022882,2]
[311076025,1704896953337,-207.83148372,0.00022882,2]
[311076026,1704896953357,-155.55901181,0.00022882,2]
[311076027,1704896953377,-157.39865583,0.00022882,2]
[311076028,1704896953398,-155.0,0.00022882,2]
[311076029,1704896953418,-232.81085492,0.00022882,2]
[311076030,1704896953437,-322.97657694,0.00022882,2]
[311076031,1704896953457,-241.58690371,0.00022882,2]
[311076032,1704896953478,-373.92735783,0.00022882,2]
[311076033,1704896953497,-361.98217794,0.00022882,2]
[311076034,1704896953516,-185.42771038,0.00022882,2]
[311076035,1704896953536,-208.38724354,0.00022882,2]
[311076036,1704896953555,-158.80579849,0.00022882,2]
[311076037,1704896953575,-200.81745024,0.00022882,2]
[311076038,1704896953595,-3425.9123988,0.00022882,4]
[311076039,1704896953615,-155.32404279,0.00022883,2]
[311076040,1704896953635,-4618.23464796,0.00022884,2]
[311076041,1704896953655,-4066.87594077,0.00022884,2]
[311076042,1704896953675,-32990.1170497,0.00022884,2]
[311076043,1704896953696,-195.40245811,0.00022884,2]
[311076044,1704896953716,-323.634376,0.00022884,2]
[311076045,1704896953738,-2301.96599868,0.00022884,2]
[311076046,1704896953758,-223.92574334,0.00022884,2]
[311076047,1704896953779,-331.91038392,0.00022884,2]
[311076048,1704896953799,-161.85788332,0.00022884,2]
[311076049,1704896953820,-189.58827229,0.00022884,2]
[311076050,1704896953842,-513.52521044,0.00022884,2]
[311076051,1704896953863,-843.00113502,0.00022884,2]
[311076052,1704896953882,-330.25821039,0.00022884,2]
[311076053,1704896953901,-692.22962778,0.00022884,2]
[311076054,1704896953921,-199.14622771,0.00022884,2]
[311076055,1704896953940,-2554.84248271,0.00022884,2]
[311076056,1704896953959,-259.86244091,0.00022884,2]
[311076057,1704896953982,-251.79727683,0.00022884,2]
[311076058,1704896954001,-251.99880636,0.00022885,2]
[311076059,1704896954021,-241.61161094,0.00022885,2]
[311076060,1704896954040,-513.70005074,0.00022885,2]
[311076061,1704896954059,-155.0,0.00022885,2]
[311076062,1704896954079,-155.3862727,0.00022885,2]
[311076063,1704896954099,-183.06289581,0.00022885,2]
[311076064,1704896954118,-522.07104133,0.00022885,2]
[311076065,1704896954138,-336.69086329,0.00022885,2]
[311076066,1704896954157,-217.32566192,0.00022885,2]
[311076067,1704896954177,-221.20394002,0.00022885,2]
[311076068,1704896954196,-266.896202,0.00022885,2]
[311076069,1704896954216,-155.1313233,0.00022885,2]
[311076070,1704896954239,-1709.01281989,0.00022885,2]
[311076071,1704896954258,-155.03242496,0.00022885,2]
[311076072,1704896954277,-197.74295189,0.00022885,2]
[311076073,1704896954297,-243.40859199,0.00022885,2]
[311076074,1704896954317,-155.0190123,0.00022885,2]
[311076075,1704896954337,-155.0,0.00022885,2]
[311076076,1704896954356,-12960.1236206,0.00022885,2]
[311076077,1704896954376,-200.8130963,0.00022885,2]
[311076078,1704896954396,-360.0278767,0.00022885,2]
[311076079,1704896954416,-155.0,0.00022885,2]
[311076080,1704896954435,-155.0,0.00022885,2]
[311076081,1704896954456,-936.88327545,0.00022885,2]
[311076082,1704896954477,-372.3247722,0.00022885,2]
[311076083,1704896954497,-155.52034948,0.00022886,2]
[311076084,1704896954518,-156.17916202,0.00022886,2]
[311076085,1704896954538,-157.15051088,0.00022886,2]
[311076086,1704896954559,-784.7109482,0.00022886,2]
[311076087,1704896954581,-156.4406459,0.00022886,2]
[311076088,1704896954601,-233.76777463,0.00022886,2]
[311076089,1704896954623,-206.91186275,0.00022886,2]
[311076090,1704896954643,-213.26260169,0.00022886,2]
[311076091,1704896954664,-155.0,0.00022886,2]
[311076092,1704896954689,-115409.73262655,0.00022886,2]
[311076118,1704896975472,-163.60136251,0.00022788,2]
[311076119,1704896975494,-163.60136251,0.00022794,2]
[311076120,1704896975515,-163.60136251,0.000228,2]
[311076121,1704896975536,-155.47721802,0.00022885,2]
[311076122,1704896975559,-9353.71869445,0.00022886,2]
[311076123,1704896976593,-10000.0,0.00022886,2]
[311076124,1704896977207,-10000.0,0.00022886,2]
[311076125,1704896977684,-10000.0,0.00022886,2]
[311076126,1704896978091,-10000.0,0.00022886,2]
[311076127,1704897006794,205.0,0.00022319,2]
[311076128,1704897014491,-2894.7471,0.00022782,2]
[311076129,1704897014511,-1000.0,0.00022786,2]
[311076130,1704897014533,-1510.54677921,0.00022886,3]
[311076131,1704897014555,-4389.70612079,0.00022886,2]
[311076144,1704897032365,-1101.00144952,0.00022886,2]
[311076145,1704897032375,-5187.43755048,0.00022886,2]
[311076146,1704897032387,-499.95,0.00022886,2]
[311076147,1704897032398,-441.0,0.00022886,2]
[311076148,1704897032409,-500.0,0.00022886,2]
[311076149,1704897032426,-464.0253,0.00022886,2]
[311076178,1704897032956,-23820.84877003,0.00022886,2]
[311076180,1704897032965,-266.41495474,0.00022886,2]
[311076182,1704897032974,-205.47626896,0.00022886,2]
[311076184,1704897032983,-6699.21100854,0.00022888,2]
[311076186,1704897032994,-524.59066006,0.00022888,2]
[311076189,1704897033005,-180122.1449314,0.00022888,2]
[311076191,1704897033014,-713.67,0.00022897,2]
[311076193,1704897033023,-718.62,0.00022898,2]
[311076195,1704897033031,-717.39,0.00022899,2]
[311076196,1704897033042,-731.27,0.000229,2]
[311076198,1704897033052,-20633.5164253,0.000229,2]
[311076201,1704897033064,-1433.59287709,0.000229,2]
[311076356,1704897038339,-2664.96045199,0.000229,2]
[311076367,1704897038460,-48219.05210907,0.000229,2]
[311076369,1704897038472,-25994.96433733,0.000229,2]
[311076372,1704897038485,-30204.9750077,0.000229,2]
[311076373,1704897038495,-2210.79178775,0.000229,2]
[311076374,1704897038504,-1821.65814096,0.000229,2]
[311076375,1704897038514,-433.53208492,0.000229,2]
[311076376,1704897038524,-736.38,0.000229,2]
[311076377,1704897038533,-171.19,0.00022919,2]
[311076378,1704897038545,-194.02,0.00022963,2]
[311076379,1704897038554,-301.66001693,0.00022986,2]
[311076380,1704897038564,-306.94907181,0.00022986,2]
[311076381,1704897038574,-725.92,0.00022987,2]
[311076382,1704897038583,-734.37,0.00022987,2]
[311076383,1704897038593,-736.35,0.00022988,2]
[311076384,1704897038602,-2608.10646496,0.00022988,2]
[311076385,1704897038612,-150.0,0.00022989,2]
[311076386,1704897038622,-6374.20874659,0.0002299,2]
[311076387,1704897038632,-1254.29701492,0.00022996,2]
[311076388,1704897038642,-2897.2003274,0.00022996,2]
[311076389,1704897038652,-1060.13599255,0.00022996,2]
[311076390,1704897038662,-190.72179871,0.00022996,2]
[311076391,1704897038672,-265.07070248,0.00022996,2]
[311076392,1704897038681,-719.92,0.00022997,2]
[311076393,1704897038691,-716.34,0.00022997,2]
[311076394,1704897038701,-915.43780347,0.00022998,2]
[311076395,1704897038711,-326.69313074,0.00022998,2]